fUSD/lending_fUSD_20250720
["ID","MTS","AMOUNT","RATE_DAILY","PERIOD"]
[373414263,1752991832609,-1113.02203179,0.00016441,2]
[373414264,1752991832621,-6.94521449,0.00016441,2]
[373414265,1752991832630,-300.0,0.0001645,2]
[373414266,1752991832639,-2990.21278266,0.00016451,2]
[373414267,1752991832648,-190.0,0.0001669,7]
[373414268,1752991832658,-6267.72,0.00016736,2]
[373414269,1752991832667,-1000.0,0.00016799,2]
[373414270,1752991832675,-369.77229266,0.00016811,2]
[373414271,1752991832686,-296.22770734,0.00016811,2]
[373414272,1752991832695,-176.02,0.00016816,2]
[373414273,1752991832705,-150.0,0.00016857,2]
[373414274,1752991832714,-62.21695368,0.00016857,2]
[373414275,1752991832729,-90.65304632,0.00016857,2]
[373414277,1752991832739,-150.0,0.0001744,2]
[373414279,1752991832748,-404.0,0.000175,2]
[373414281,1752991832757,-1500.0,0.0001752,2]
[373414283,1752991832766,-829.19985809,0.0001752,2]
[373414287,1752991832790,-470.80014191,0.0001752,2]
[373414289,1752991832800,-150.0,0.0001757,2]
[373414290,1752991832809,-2500.0,0.00017603,2]
[373414292,1752991832818,-605.19985809,0.00017603,2]
[373414295,1752991832830,-394.80014191,0.00017603,2]
[373414297,1752991832839,-2500.0,0.00017603,2]
[373414299,1752991832854,-337.87220173,0.00017603,2]
[373414571,1752991838258,-662.12779827,0.00017603,2]
[373414572,1752991838267,-300.0,0.00017603,2]
[373414573,1752991838277,-2500.0,0.00017603,2]
[373414574,1752991838286,-1000.0,0.00017603,2]
[373414575,1752991838295,-150.0,0.00017654,2]
[373414576,1752991838304,-350.80900682,0.00017682,2]
[373414577,1752991838313,-5937.68645365,0.00017682,2]
[373414578,1752991838323,-1147.37674126,0.00017682,2]
[373414579,1752991838480,-176.37265818,0.00017682,2]
[373414580,1752991838490,-123.94734182,0.00017682,2]
[373414581,1752991838501,-974.16207443,0.00017682,2]
[373414582,1752991838537,-2107.39343158,0.00017682,2]
[373414583,1752991838548,-5076.38771409,0.00017682,2]
[373414584,1752991838559,-5308.83388128,0.00017682,2]
[373414585,1752991838595,-7295.06149,0.00017682,2]
[373414586,1752991838607,-423.67267176,0.00017682,2]
[373414587,1752991838618,-922.94519387,0.00017682,2]
[373414794,1752991840754,-2054.98271039,0.00017682,2]
[373414799,1752991840793,-1747.26614932,0.00017682,2]
[373414801,1752991840811,-1509.56030894,0.00017682,2]
[373414803,1752991840820,-150.0,0.0001769,2]
[373414819,1752991840961,-150.99,0.00017728,2]
[373414823,1752991840988,-37401.25,0.00017728,2]
[373414825,1752991840997,-9999.99,0.00017728,2]
[373414827,1752991841007,-175.25282093,0.00017771,2]
[373414829,1752991841016,-380.85,0.00017772,2]
[373414831,1752991841026,-207.51655815,0.00017772,2]
[373414833,1752991841035,-380.85,0.00017772,2]
[373414835,1752991841044,-380.85,0.00017772,2]
[373414837,1752991841054,-380.85,0.00017772,2]
[373414839,1752991841063,-380.85,0.00017772,2]
[373414841,1752991841072,-978.66,0.00017772,2]
[373414843,1752991841082,-978.66,0.00017772,2]
[373414845,1752991841092,-480.1549857,0.00017773,2]
[373414847,1752991841101,-500.0,0.00017773,2]
[373414849,1752991841110,-500.0,0.00017773,2]
[373414851,1752991841119,-190.82028372,0.00017781,2]
[373414853,1752991841129,-941.52688425,0.00017781,2]
[373414855,1752991841138,-666.0,0.00017781,2]
[373414857,1752991841147,-110265.49789956,0.00017782,2]
[373414859,1752991841157,-3168.90570879,0.00017782,2]
[373414861,1752991841166,-114349.17452866,0.00017782,2]
[373414863,1752991841179,-40626.79191419,0.00017782,2]
[373414866,1752991841190,-317.878,0.00017782,2]
[373414868,1752991841206,-6627.63447899,0.00017782,2]
[373414871,1752991841217,-872.534,0.00017782,2]
[373414873,1752991841228,-3582.14261905,0.00017782,2]
[373414875,1752991841240,-298.51436949,0.00017782,2]
[373414877,1752991841251,-289.15000193,0.00017782,2]
[373414881,1752991841275,-641.01223463,0.00017782,2]
[373415109,1752991843374,-2862.79466737,0.00017782,2]
[373415124,1752991843487,-99685.02447847,0.00017782,2]
[373415127,1752991843499,-820.36676688,0.00017782,2]
[373415137,1752991843598,-512.46099989,0.00017782,2]
[373415140,1752991843610,-800.82437286,0.00017782,2]
[373415145,1752991843656,-1581.70762577,0.00017782,2]
[373415170,1752991843901,-8051.99407817,0.00017782,2]
[373415172,1752991843912,-3282.5618937,0.00017782,2]
[373415174,1752991843924,-6010.11023308,0.00017782,2]
[373415176,1752991843935,-2584.84598007,0.00017782,2]
[373415179,1752991843946,-1917.71056119,0.00017782,2]
[373415181,1752991843958,-834.90360017,0.00017782,2]
[373415455,1752991846563,-656.662928,0.00017782,2]
[373415457,1752991846574,-708.6289267,0.00017782,2]
[373415470,1752991846679,-4064.83,0.00017782,2]
[373415960,1752991983679,150.0,0.00015963,2]
[373415965,1752992250003,247.91,0.00013699,2]
[373415966,1752992252371,315.15927901,0.000211,28]
[373415968,1752992758568,510.0,0.00015387,2]
[373415985,1752993031554,-5445.54778132,0.000162,5]
[373415986,1752993031565,-65.45221868,0.000162,5]
[373415987,1752993031574,-150.0,0.00016297,2]
[373415988,1752993031584,-179.85,0.00016353,2]
[373415989,1752993031594,-830.45,0.00016374,2]
[373415990,1752993031603,-397.1925626,0.00016426,2]
[373415991,1752993031614,-55.2874374,0.00016426,2]
[373415992,1752993031623,-300.0,0.00016513,2]
[373415993,1752993031633,-1200.0,0.00016513,2]
[373415994,1752993031642,-1000.0,0.00016514,2]
[373415995,1752993031651,-1980.66785197,0.00016514,2]
[373415996,1752993031675,-519.33214803,0.00016514,2]
[373415997,1752993031684,-150.0,0.00016568,2]
[373415998,1752993031693,-115.32438875,0.00016575,2]
[373415999,1752993031704,-884.67561125,0.00016575,2]
[373416000,1752993031713,-825.75,0.00016588,2]
[373416001,1752993031722,-173.14,0.00016631,2]
[373416002,1752993031732,-92.55396674,0.00016667,2]
[373416003,1752993031743,-57.44603326,0.00016667,2]
[373416004,1752993031752,-150.0,0.00016685,2]
[373416005,1752993031761,-190.0,0.00016712,7]
[373416006,1752993031769,-579.69108959,0.000169,2]
[373416007,1752993031780,-692.9863151,0.000169,2]
[373416008,1752993031791,-1735.99508552,0.000169,2]
[373416009,1752993031801,-89.65491446,0.00016934,2]
[373416010,1752993031829,-1492.89870987,0.00016934,2]
[373416011,1752993031841,-1426.11886579,0.00016934,2]
[373416012,1752993031851,-150.0,0.0001694,2]
[373416013,1752993031860,-3008.67249012,0.00016969,2]
[373416035,1752993032137,-150.0,0.00016993,2]
[373416038,1752993032151,-2233.84832534,0.00017,2]
[373416039,1752993032161,-3008.67249012,0.00017003,2]
[373416041,1752993032171,-3008.67249012,0.00017038,2]
[373416043,1752993032180,-3008.67249012,0.00017072,2]
[373416044,1752993032189,-200.0,0.000171,6]
[373416046,1752993032199,-3008.67249012,0.00017107,2]
[373416048,1752993032208,-3008.67249012,0.00017141,2]
[373416050,1752993032217,-3008.67249012,0.00017176,2]
[373416052,1752993032227,-150.0,0.0001718,2]
[373416054,1752993032236,-500.0,0.000172,6]
[373416056,1752993032246,-5000.0,0.0001721,2]
[373416058,1752993032255,-2291.5255439,0.0001721,6]
[373416060,1752993032265,-3008.67249012,0.0001721,2]
[373416062,1752993032274,-3008.67249012,0.00017245,2]
[373416064,1752993032283,-3008.67249012,0.00017279,2]
[373416066,1752993032293,-800.0,0.000173,6]
[373416068,1752993032302,-3008.67249012,0.00017314,2]
[373416070,1752993032311,-3008.67249012,0.00017348,2]
[373416072,1752993032321,-3008.67249012,0.00017383,2]
[373416074,1752993032330,-417.13370758,0.00017399,2]
[373416076,1752993032340,-24595.67796453,0.000174,2]
[373416078,1752993032352,-12756.18302831,0.000174,2]
[373416080,1752993032361,-1100.0,0.000174,6]
[373416082,1752993032371,-3008.67249012,0.00017417,2]
[373416084,1752993032380,-3008.67249012,0.00017452,2]
[373416086,1752993032390,-173.14,0.00017462,2]
[373416088,1752993032399,-15555.36,0.00017482,2]
[373416090,1752993032409,-712.68628559,0.00017484,2]
[373416091,1752993032418,-3008.67249012,0.00017486,2]
[373416093,1752993032427,-402.0,0.000175,2]
[373416095,1752993032436,-1400.0,0.000175,6]
[373416097,1752993032446,-500.0,0.0001752,2]
[373416099,1752993032455,-1900.0,0.0001752,2]
[373416101,1752993032465,-1300.0,0.0001752,2]
[373416103,1752993032474,-3008.67249012,0.00017521,2]
[373416105,1752993032485,-928.68,0.0001754,2]
[373416107,1752993032494,-150.0,0.00017544,2]
[373416109,1752993032504,-3008.67249012,0.00017555,2]
[373416111,1752993032514,-150.0,0.00017569,2]
[373416113,1752993032523,-112.91987473,0.0001759,2]
[373416116,1752993032541,-2895.75261539,0.0001759,2]
[373416118,1752993032550,-484.64475557,0.000176,2]
[373416120,1752993032561,-1385.58741443,0.000176,2]
[373416122,1752993032570,-200.0,0.000176,6]
[373416124,1752993032580,-592.90906785,0.00017624,2]
[373416126,1752993032591,-460.08726525,0.00017624,2]
[373416129,1752993032613,-696.38387334,0.00017624,2]
[373416134,1752993032647,-1259.29228368,0.00017624,2]
[373416136,1752993032656,-69.74008952,0.00017632,2]
[373416138,1752993032668,-80.25991048,0.00017632,2]
[373416140,1752993032677,-150.0,0.0001765,2]
[373416142,1752993032686,-1028.36488047,0.00017659,2]
[373416144,1752993032697,-1980.30760965,0.00017659,2]
[373416146,1752993032706,-564.80159397,0.00017673,2]
[373416148,1752993032715,-159.45249431,0.00017682,2]
[373416150,1752993032725,-1599.50038162,0.00017682,2]
[373416152,1752993032735,-168.30447277,0.00017682,2]
[373416154,1752993032744,-150.0,0.00017689,2]
[373416156,1752993032753,-150.0,0.0001769,2]
[373416158,1752993032762,-3008.67249012,0.00017693,2]
[373416160,1752993032771,-168.30447277,0.00017696,2]
[373416162,1752993032782,-154.83245859,0.00017696,2]
[373416164,1752993032791,-350.80900677,0.00017696,2]
[373416165,1752993032800,-426.61583282,0.00017696,2]
[373416167,1752993032809,-200.0,0.000177,6]
[373416169,1752993032819,-13827.40450414,0.000177,2]
[373416503,1752993037518,-432.95504634,0.00017696,2]
[373416504,1752993037843,-573.41849296,0.00017696,2]
[373416505,1752993037852,-431.7859876,0.00017696,3]
[373416506,1752993037861,-11480.74121325,0.000177,2]
[373416507,1752993037872,-505.43627908,0.000177,2]
[373416508,1752993037882,-3008.67249012,0.00017728,2]
[373416509,1752993037892,-999.99,0.00017728,2]
[373416510,1752993037902,-150.99,0.00017728,2]
[373416511,1752993037913,-9069.75,0.00017728,2]
[373416512,1752993037922,-412.29,0.00017728,2]
[373416513,1752993037932,-150.0,0.00017762,2]
[373416514,1752993037941,-3008.67249012,0.00017762,2]
[373416515,1752993037950,-204.54226313,0.00017772,2]
[373416516,1752993037960,-513.40344777,0.00017773,2]
[373416517,1752993037970,-504.89583038,0.00017773,2]
[373416518,1752993037979,-501.71157845,0.00017773,2]
[373416519,1752993037989,-502.34044548,0.00017773,2]
[373416520,1752993037998,-503.57827584,0.00017773,2]
[373416521,1752993038008,-500.0,0.00017773,2]
[373416522,1752993038019,-502.10184673,0.00017773,2]
[373416523,1752993038028,-509.20696183,0.00017773,2]
[373416524,1752993038038,-500.0,0.00017773,2]
[373416525,1752993038049,-500.0,0.00017773,2]
[373416526,1752993038060,-500.0,0.00017773,2]
[373416527,1752993038069,-502.72703854,0.00017773,2]
[373416528,1752993038078,-487.17419222,0.00017773,2]
[373416529,1752993038088,-500.0,0.00017773,2]
[373416530,1752993038099,-2110.0,0.00017773,2]
[373416531,1752993038109,-150.0,0.00017773,2]
[373416532,1752993038119,-150.0,0.00017773,2]
[373416533,1752993038128,-150.0,0.00017773,2]
[373416534,1752993038139,-150.0,0.00017773,2]
[373416535,1752993038148,-151.2614676,0.00017773,2]
[373416536,1752993038158,-500.0,0.00017773,2]
[373416537,1752993038170,-500.0,0.00017773,2]
[373416538,1752993038179,-500.0,0.00017773,2]
[373416539,1752993038189,-150.0,0.00017773,2]
[373416541,1752993038198,-150.0,0.00017773,2]
[373416543,1752993038208,-1174.0,0.00017773,2]
[373416545,1752993038218,-150.0,0.00017773,2]
[373416547,1752993038227,-4421.0,0.00017773,2]
[373416549,1752993038237,-500.0,0.00017773,2]
[373416550,1752993038246,-200.84072816,0.00017773,2]
[373416551,1752993038255,-500.0,0.00017773,2]
[373416552,1752993038265,-500.0,0.00017773,2]
[373416553,1752993038276,-310.26629844,0.00017781,2]
[373416554,1752993038286,-500.0,0.00017781,2]
[373416567,1752993038532,-500.0,0.00017781,2]
[373416569,1752993038543,-554.81549076,0.00017781,2]
[373416572,1752993038552,-500.0,0.00017781,2]
[373416574,1752993038562,-150.0,0.00017781,2]
[373416575,1752993038571,-500.0,0.00017781,2]
[373416577,1752993038580,-150.0,0.00017781,2]
[373416579,1752993038589,-615.0,0.00017781,2]
[373416581,1752993038598,-500.0,0.00017781,2]
[373416583,1752993038607,-500.0,0.00017781,2]
[373416585,1752993038616,-500.0,0.00017781,2]
[373416587,1752993038626,-150.0,0.00017781,2]
[373416589,1752993038635,-150.0,0.00017781,2]
[373416591,1752993038644,-150.0,0.00017781,2]
[373416593,1752993038654,-500.0,0.00017781,2]
[373416595,1752993038663,-150.0,0.00017781,2]
[373416597,1752993038672,-194.68481886,0.00017781,2]
[373416599,1752993038681,-666.0,0.00017781,2]
[373416601,1752993038690,-666.0,0.00017781,2]
[373416603,1752993038700,-300.0,0.00017781,2]
[373416605,1752993038709,-300.0,0.00017781,2]
[373416607,1752993038718,-72327.35965289,0.00017782,2]
[373416609,1752993038727,-1584.45285439,0.00017782,2]
[373416611,1752993038736,-188474.54779869,0.00017782,2]
[373416622,1752993038824,-2159.87722957,0.00017782,2]
[373416624,1752993038839,-4565.46682378,0.00017782,2]
[373416626,1752993038851,-15109.15154558,0.00017782,2]
[373416633,1752993038901,-4070435.25298909,0.00017782,2]
[373416692,1752993039624,-299.81563817,0.00017782,2]
[373416693,1752993039635,-829.39482203,0.00017782,2]
[373416694,1752993039650,-1026.08837305,0.00017782,2]
[373416695,1752993039662,-3036.9488943,0.00017782,2]
[373416696,1752993039798,-25883.14578838,0.00017782,2]
[373416697,1752993039812,-1752.72875,0.00017782,2]
[373416698,1752993039824,-321.4024,0.00017782,2]
[373416699,1752993039862,-28617.82052016,0.00017782,2]
[373416700,1752993039970,-1308.172,0.00017782,2]
[373416701,1752993041418,-276.42084939,0.00017782,2]
[373416702,1752993041529,-457.52,0.00017782,2]
[373416815,1752993042659,-2413.0808208,0.00017782,2]
[373416817,1752993042670,-393.3719999,0.00017782,2]
[373416871,1752993043209,-441.02,0.00017782,2]
[373416886,1752993043333,-4262.58677564,0.00017782,2]
[373416888,1752993043345,-4889.44327446,0.00017782,2]
[373417110,1752993045561,-2883.23764294,0.00017782,2]
[373417111,1752993045680,-1442.94,0.00017782,2]
[373417112,1752993045930,-295182.30886245,0.00017782,2]
[373417113,1752993045941,-223455.46322497,0.00017782,2]
[373417136,1752993063538,150.0,0.00015998,2]
[373417137,1752993183689,150.0,0.00015661,2]
[373417141,1752993394966,258.5,0.00013699,2]
[373417147,1752994101231,506.09493009,0.00016,2]
[373417148,1752994107457,265.77342583,0.00015968,2]
[373417149,1752994115378,1859.80099699,0.00015968,2]
[373417150,1752994138634,511.0,0.00015442,2]
[373417151,1752994171112,187.0,0.00023,30]
[373417152,1752994205768,159.68,0.00024829,120]
[373417159,1752994232375,-150.0,0.00016003,2]
[373417161,1752994232385,-250.0,0.00016068,2]
[373417163,1752994232394,-177.49,0.00016454,2]
[373417165,1752994232403,-520.54,0.00016462,2]
[373417167,1752994232413,-190.0,0.00016477,7]
[373417169,1752994232422,-11.72968627,0.000165,2]
[373417174,1752994232438,-188.27031373,0.000165,2]
[373417177,1752994232447,-666.0,0.00016504,2]
[373417179,1752994232456,-530.18494226,0.00016505,2]
[373417181,1752994232467,-783.65442109,0.00016505,2]
[373417183,1752994232479,-893.90063665,0.00016505,2]
[373417185,1752994232488,-1000.0,0.00016525,2]
[373417187,1752994232498,-500.99,0.00016525,2]
[373417189,1752994232508,-159.68,0.00016553,2]
[373417192,1752994232518,-1200.0,0.0001659,2]
[373417194,1752994232528,-816.25,0.00016591,2]
[373417196,1752994232538,-200.0,0.00016827,2]
[373417198,1752994232547,-150.0,0.00016857,2]
[373417200,1752994232557,-209.69005074,0.000169,2]
[373417202,1752994232571,-1069.0,0.00017,2]
[373417203,1752994232580,-150.0,0.00017074,2]
[373417205,1752994232590,-167.82,0.00017147,2]
[373417208,1752994232599,-209.69005069,0.00017186,2]
[373417209,1752994232609,-177.49,0.00017277,2]
[373417212,1752994232619,-1000.0,0.00017349,2]
[373417213,1752994232628,-150.0,0.00017417,2]
[373417215,1752994232638,-873.74109629,0.00017452,2]
[373417217,1752994232647,-209.69005069,0.00017471,2]
[373417219,1752994232657,-5036.9523411,0.00017482,2]
[373417223,1752994232680,-852.21395881,0.00017482,2]
[373417225,1752994232691,-14715.69550662,0.00017482,2]
[373417227,1752994232701,-150.0,0.00017496,2]
[373417229,1752994232710,-453.0,0.000175,2]
[373417231,1752994232719,-500.0,0.0001752,2]
[373417233,1752994232728,-1300.0,0.0001752,2]
[373417235,1752994232737,-1600.0,0.0001752,2]
[373417237,1752994232747,-500.0,0.00017582,2]
[373417239,1752994232756,-2500.0,0.00017603,2]
[373417241,1752994232767,-1000.0,0.00017603,2]
[373417243,1752994232776,-2500.0,0.00017603,2]
[373417245,1752994232786,-1000.0,0.00017603,2]
[373417247,1752994232795,-300.0,0.00017603,2]
[373417249,1752994232805,-250.0,0.00017603,2]
[373417251,1752994232814,-2500.0,0.00017603,2]
[373417253,1752994232823,-1000.0,0.00017603,2]
[373417255,1752994232832,-597.46802039,0.00017673,2]
[373417257,1752994232841,-150.0,0.00017677,2]
[373417259,1752994232851,-2222.27175758,0.0001768,2]
[373417261,1752994232862,-605.56231085,0.0001768,2]
[373417265,1752994232888,-1174.81928638,0.0001768,2]
[373417267,1752994232896,-1877.31882362,0.00017681,2]
[373417271,1752994232924,-2434.66197133,0.00017681,2]
[373417739,1752994237629,-1725.43435589,0.00017681,2]
[373417741,1752994237639,-152.81654774,0.00017681,2]
[373417743,1752994237648,-6037.41515084,0.00017681,2]
[373417745,1752994237659,-6037.41515084,0.00017681,2]
[373417747,1752994237668,-152.81654773,0.00017681,2]
[373417749,1752994237678,-6037.41515084,0.00017681,2]
[373417751,1752994237687,-6037.41515084,0.00017681,2]
[373417753,1752994237698,-152.81654773,0.00017682,2]
[373417755,1752994237707,-6037.41515084,0.00017682,2]
[373417757,1752994237718,-645.50160392,0.00017682,2]
[373417762,1752994237753,-5391.91354692,0.00017682,2]
[373417764,1752994237762,-152.81654773,0.00017682,2]
[373417766,1752994237771,-6037.41515084,0.00017682,2]
[373417768,1752994237780,-6037.41515084,0.00017682,2]
[373417770,1752994237790,-157.200894,0.00017682,2]
[373417772,1752994237799,-1036.53337302,0.00017682,2]
[373417774,1752994237809,-6037.41515084,0.00017682,2]
[373417776,1752994237819,-152.81654773,0.00017682,2]
[373417778,1752994237828,-466.71945888,0.00017682,2]
[373417780,1752994237838,-287.85732506,0.00017682,3]
[373417782,1752994237847,-600.41260652,0.000177,2]
[373417784,1752994237857,-150.0,0.00017722,2]
[373417786,1752994237866,-5792.39986238,0.00017737,2]
[373417788,1752994237876,-150.0,0.00017745,2]
[373417790,1752994237886,-209.69005069,0.00017757,2]
[373417792,1752994237895,-182.48,0.00017763,2]
[373417794,1752994237904,-912.23295077,0.00017763,2]
[373417796,1752994237914,-4748.48435084,0.00017769,2]
[373417798,1752994237924,-912.23295077,0.00017772,2]
[373417800,1752994237933,-912.23295077,0.00017772,2]
[373417802,1752994237942,-306.55895838,0.00017772,2]
[373417804,1752994237952,-544.00188956,0.00017772,2]
[373417806,1752994237961,-332.79278326,0.00017772,2]
[373417808,1752994237971,-500.0,0.00017772,2]
[373417810,1752994237980,-500.0,0.00017772,2]
[373417812,1752994237989,-500.0,0.00017772,2]
[373417814,1752994237998,-433.56718433,0.00017772,2]
[373417816,1752994238008,-500.0,0.00017772,2]
[373417818,1752994238019,-300.0,0.00017772,2]
[373417820,1752994238031,-300.0,0.00017772,2]
[373417822,1752994238041,-674.95266371,0.00017772,2]
[373417824,1752994238050,-158.77784,0.00017773,2]
[373417826,1752994238060,-171.79175238,0.00017773,2]
[373417828,1752994238069,-168.29171763,0.00017773,2]
[373417830,1752994238079,-167.51941003,0.00017773,2]
[373417832,1752994238088,-500.0,0.00017773,2]
[373417834,1752994238097,-500.0,0.00017773,2]
[373417836,1752994238107,-500.0,0.00017773,2]
[373417838,1752994238116,-500.95769421,0.00017773,2]
[373417840,1752994238125,-500.53637006,0.00017773,2]
[373417842,1752994238134,-500.0,0.00017773,2]
[373417844,1752994238143,-500.0,0.00017773,2]
[373417846,1752994238153,-500.0,0.00017773,2]
[373417848,1752994238162,-500.0,0.00017773,2]
[373417850,1752994238171,-500.15050609,0.00017773,2]
[373417852,1752994238180,-500.0,0.00017773,2]
[373417854,1752994238189,-500.0,0.00017773,2]
[373417856,1752994238199,-500.0,0.00017773,2]
[373417858,1752994238208,-500.0,0.00017773,2]
[373417860,1752994238217,-500.0,0.00017773,2]
[373417862,1752994238227,-500.72955478,0.00017773,2]
[373417864,1752994238236,-1507319.9481297,0.00017773,2]
[373417866,1752994238246,-7259.41008908,0.00017773,2]
[373417868,1752994238255,-666.0,0.00017781,2]
[373417870,1752994238265,-300.0,0.00017781,2]
[373417872,1752994238275,-300.0,0.00017781,2]
[373417874,1752994238286,-300.0,0.00017781,2]
[373417876,1752994238296,-500.0,0.00017781,2]
[373417878,1752994238305,-251.53707094,0.00017781,2]
[373417880,1752994238316,-500.0,0.00017781,2]
[373417882,1752994238325,-200.0,0.00017781,2]
[373417884,1752994238334,-616.0,0.00017781,2]
[373417886,1752994238343,-500.0,0.00017781,2]
[373417888,1752994238353,-150.0,0.00017781,2]
[373417890,1752994238363,-500.0,0.00017781,2]
[373417892,1752994238372,-500.0,0.00017781,2]
[373417894,1752994238381,-150.0,0.00017781,2]
[373417896,1752994238391,-500.0,0.00017781,2]
[373417898,1752994238401,-1600.63909422,0.00017781,2]
[373417900,1752994238410,-500.0,0.00017781,2]
[373417902,1752994238419,-150.0,0.00017781,2]
[373417904,1752994238428,-500.0,0.00017781,2]
[373417906,1752994238437,-150.0,0.00017781,2]
[373417908,1752994238447,-247.24800544,0.00017781,2]
[373417910,1752994238456,-500.0,0.00017781,2]
[373417912,1752994238465,-150.0,0.00017781,2]
[373417914,1752994238474,-150.0,0.00017781,2]
[373417916,1752994238484,-150.0,0.00017781,2]
[373417918,1752994238493,-500.0,0.00017781,2]
[373417920,1752994238502,-200.59305685,0.00017781,2]
[373417922,1752994238512,-150.0,0.00017781,2]
[373417924,1752994238522,-150.0,0.00017781,2]
[373417926,1752994238532,-150.0,0.00017781,2]
[373417928,1752994238541,-150.0,0.00017781,2]
[373417930,1752994238551,-500.0,0.00017781,2]
[373417932,1752994238564,-1104.0,0.00017781,2]
[373417934,1752994238574,-500.0,0.00017781,2]
[373417936,1752994238584,-4514.0,0.00017781,2]
[373417938,1752994238593,-500.0,0.00017781,2]
[373417940,1752994238603,-500.0,0.00017781,2]
[373417942,1752994238614,-237.18458635,0.00017781,2]
[373417944,1752994238624,-500.0,0.00017781,2]
[373417946,1752994238633,-1207.0,0.00017781,2]
[373417948,1752994238645,-409.20797435,0.00017781,2]
[373417950,1752994238654,-300.0,0.00017781,2]
[373417952,1752994238663,-1631647.80767615,0.00017782,2]
[373417954,1752994238672,-48854.26375638,0.00017782,2]
[373417955,1752994238681,-8875133.56947632,0.00017782,2]
[373417956,1752994238698,-281.55,0.00017782,2]
[373417957,1752994238709,-401.616215,0.00017782,2]
[373417958,1752994238755,-5975.83948145,0.00017782,2]
[373417959,1752994238766,-13799.87183272,0.00017782,2]
[373417960,1752994238779,-733.95498,0.00017782,2]
[373417961,1752994238792,-431.02181692,0.00017782,2]
[373417982,1752994239146,-4135.49603354,0.00017782,2]
[373417984,1752994239157,-3655.19999999,0.00017782,2]
[373417986,1752994239168,-381.33465368,0.00017782,2]
[373418052,1752994239798,-5341.27604253,0.00017782,2]
[373418056,1752994239822,-2863.94120799,0.00017782,2]
[373418058,1752994239833,-2926.32132795,0.00017782,2]
[373418079,1752994240067,-242684.59522199,0.00017782,2]
[373418080,1752994240079,-1702.38156078,0.00017782,2]
[373418081,1752994240090,-3529.19956791,0.00017782,2]
[373418094,1752994240227,-1146.72879778,0.00017782,2]
[373418096,1752994240239,-300.86614897,0.00017782,2]
[373418099,1752994240255,-659.23630143,0.00017782,2]
[373418345,1752994242702,-1825.52465017,0.00017782,2]
[373418354,1752994242773,-793.62008107,0.00017782,2]
[373418363,1752994242861,-491171.33912221,0.00017782,2]
[373418373,1752994242944,-9605.05525938,0.00017782,2]
[373418375,1752994242956,-5214.2958,0.00017782,2]
[373418494,1752994245862,-480.0,0.00017782,2]
[373418495,1752994245874,-520.45800274,0.00017782,2]
[373418501,1752994258713,510.0,0.00015442,2]
[373418527,1752994414733,245.57,0.00013699,2]
[373418577,1752994780974,1047.13,0.00016,2]
[373418593,1752995432021,-511.0,0.00016156,2]
[373418594,1752995432031,-229.52678803,0.00016424,2]
[373418595,1752995432042,-2500.0,0.00016444,2]
[373418596,1752995432052,-1000.0,0.00016444,2]
[373418597,1752995432061,-179.86,0.00016524,2]
[373418598,1752995432071,-666.0,0.00016524,2]
[373418599,1752995432081,-266.26684697,0.00016542,2]
[373418600,1752995432093,-99.31315303,0.00016542,2]
[373418601,1752995432103,-3291.89,0.00016574,2]
[373418602,1752995432112,-1000.0,0.0001674,2]
[373418603,1752995432122,-760.68561894,0.00016787,2]
[373418604,1752995432134,-439.31438106,0.00016787,2]
[373418605,1752995432143,-168.0,0.000168,2]
[373418606,1752995432153,-277.87,0.0001687,2]
[373418607,1752995432163,-173.29,0.00016901,2]
[373418608,1752995432174,-176.16,0.00016904,2]
[373418609,1752995432185,-127.76579894,0.00017,2]
[373418617,1752995432246,-163.79585166,0.00017,2]
[373418619,1752995432256,-168.0,0.00017163,2]
[373418620,1752995432265,-200.0,0.000174,6]